[Event "Early-Titled-Tuesday-Blitz-February-20-2024"]
[Site "Chess.com"]
[Date "2024.02.20"]
[Round "8"]
[White "Lukianoo"]
[Black "Oleksandr_Bortnyk"]
[Result "0-1"]
[WhiteElo "2905"]
[BlackElo "3075"]
[TimeControl "180+1"]
[EndTime "9:33:50 PST"]
[Termination "Oleksandr_Bortnyk won by resignation"]

1. e4 {[%clk 0:03:00.9]} 1... Nf6 {[%clk 0:03:00]} 2. e5 {[%clk 0:03:01]} 2...
Nd5 {[%clk 0:03:00.4]} 3. c4 {[%clk 0:03:01]} 3... Nb6 {[%clk 0:03:00.9]} 4. d4
{[%clk 0:03:01.7]} 4... d6 {[%clk 0:03:01.4]} 5. f4 {[%clk 0:03:02.2]} 5... dxe5
{[%clk 0:03:02]} 6. fxe5 {[%clk 0:03:03.1]} 6... Bf5 {[%clk 0:03:02.6]} 7. Nc3
{[%clk 0:03:02.8]} 7... e6 {[%clk 0:03:03.3]} 8. Nf3 {[%clk 0:03:02]} 8... Bb4
{[%clk 0:03:04]} 9. Be3 {[%clk 0:02:59.4]} 9... c5 {[%clk 0:03:04.5]} 10. Be2
{[%clk 0:02:20.3]} 10... O-O {[%clk 0:02:51.5]} 11. O-O {[%clk 0:02:18.2]} 11...
cxd4 {[%clk 0:02:52.1]} 12. Nxd4 {[%clk 0:02:18]} 12... Bg6 {[%clk 0:02:51]} 13.
Ndb5 {[%clk 0:02:10.4]} 13... N8d7 {[%clk 0:02:19.7]} 14. a3 {[%clk 0:01:48.2]}
14... Bxc3 {[%clk 0:02:16.2]} 15. Nxc3 {[%clk 0:01:49.1]} 15... Nxe5 {[%clk
0:02:15.1]} 16. Qb3 {[%clk 0:01:49.7]} 16... Qe7 {[%clk 0:01:35.1]} 17. Nb5
{[%clk 0:01:36.4]} 17... Nc8 {[%clk 0:00:56.3]} 18. Qb4 {[%clk 0:01:19.3]} 18...
Nc6 {[%clk 0:00:47.2]} 19. Qc3 {[%clk 0:01:05.4]} 19... a6 {[%clk 0:00:45.6]}
20. Nd4 {[%clk 0:01:05.9]} 20... e5 {[%clk 0:00:32.9]} 21. Nxc6 {[%clk
0:01:05.2]} 21... bxc6 {[%clk 0:00:33.8]} 22. b4 {[%clk 0:01:03.3]} 22... Nd6
{[%clk 0:00:33.7]} 23. Rad1 {[%clk 0:00:59]} 23... Ne4 {[%clk 0:00:31.8]} 24.
Qc1 {[%clk 0:00:56.7]} 24... a5 {[%clk 0:00:28.4]} 25. Qb2 {[%clk 0:00:32.2]}
25... axb4 {[%clk 0:00:28.4]} 26. axb4 {[%clk 0:00:32.8]} 26... Rfb8 {[%clk
0:00:28.5]} 27. b5 {[%clk 0:00:33.1]} 27... cxb5 {[%clk 0:00:24.3]} 28. cxb5
{[%clk 0:00:34]} 28... Qa3 {[%clk 0:00:24.5]} 29. Bc1 {[%clk 0:00:19.3]} 29...
Qc5+ {[%clk 0:00:19.6]} 30. Kh1 {[%clk 0:00:16.7]} 30... Nf2+ {[%clk 0:00:20.3]}
31. Rxf2 {[%clk 0:00:17.3]} 31... Qxf2 {[%clk 0:00:21.2]} 32. Rf1 {[%clk
0:00:15.5]} 32... Qc5 {[%clk 0:00:20.3]} 33. h4 {[%clk 0:00:13.6]} 33... h5
{[%clk 0:00:20.6]} 34. Bg5 {[%clk 0:00:11.8]} 34... Ra4 {[%clk 0:00:20.7]} 35.
Qd2 {[%clk 0:00:10.8]} 35... Qd4 {[%clk 0:00:20.6]} 36. Qxd4 {[%clk 0:00:07]}
36... exd4 {[%clk 0:00:20.1]} 37. Bf4 {[%clk 0:00:04.8]} 37... Rb7 {[%clk
0:00:19.9]} 38. Bf3 {[%clk 0:00:05]} 38... Rxb5 {[%clk 0:00:18.7]} 39. Bc6
{[%clk 0:00:05.5]} 39... Rbb4 {[%clk 0:00:12]} 40. Bxa4 {[%clk 0:00:05.4]} 40...
Rxa4 {[%clk 0:00:12.9]} 41. Rd1 {[%clk 0:00:05.5]} 41... Bc2 {[%clk 0:00:11.2]}
42. Rd2 {[%clk 0:00:05]} 42... d3 {[%clk 0:00:12]} 43. g3 {[%clk 0:00:04.9]}
43... f6 {[%clk 0:00:12.1]} 44. Kg2 {[%clk 0:00:05.3]} 44... Kf7 {[%clk
0:00:12.6]} 45. Kf2 {[%clk 0:00:05.4]} 45... Ke6 {[%clk 0:00:11.9]} 46. Ke3
{[%clk 0:00:05.2]} 46... Kd5 {[%clk 0:00:08.9]} 47. Rf2 {[%clk 0:00:05.1]} 47...
Ra2 {[%clk 0:00:05.9]} 48. Bc7 {[%clk 0:00:03.5]} 48... Ra7 {[%clk 0:00:06]} 49.
Bb6 {[%clk 0:00:03]} 49... Rb7 {[%clk 0:00:06.4]} 50. Ba5 {[%clk 0:00:01.6]}
50... Bb1 {[%clk 0:00:06.4]} 51. Kd2 {[%clk 0:00:02.4]} 51... Rb2+ {[%clk
0:00:06.5]} 52. Ke3 {[%clk 0:00:03.3]} 52... Rb5 {[%clk 0:00:06.9]} 53. Bc3
{[%clk 0:00:03.3]} 53... Kc4 {[%clk 0:00:06.9]} 54. Kd2 {[%clk 0:00:04.2]} 54...
Rb7 {[%clk 0:00:05.7]} 55. Rf4+ {[%clk 0:00:05.1]} 55... Kc5 {[%clk 0:00:06]}
56. Rf5+ {[%clk 0:00:05.3]} 56... Kd6 {[%clk 0:00:05.6]} 57. Rxh5 {[%clk
0:00:05.4]} 57... Ke6 {[%clk 0:00:04.2]} 58. Ra5 {[%clk 0:00:06.3]} 58... Kf7
{[%clk 0:00:03.4]} 59. g4 {[%clk 0:00:06.8]} 59... Re7 {[%clk 0:00:03.5]} 60. h5
{[%clk 0:00:07.3]} 60... Re2+ {[%clk 0:00:04.1]} 61. Kd1 {[%clk 0:00:07.9]}
61... Bc2+ {[%clk 0:00:03.8]} 62. Kc1 {[%clk 0:00:07.4]} 62... Rg2 {[%clk
0:00:04.7]} 63. Ra7+ {[%clk 0:00:07.4]} 63... Kg8 {[%clk 0:00:05.1]} 64. h6
{[%clk 0:00:07.6]} 64... gxh6 {[%clk 0:00:06]} 65. Bxf6 {[%clk 0:00:07.2]} 65...
Rxg4 {[%clk 0:00:06.3]} 66. Ra5 {[%clk 0:00:06.9]} 66... Rg2 {[%clk 0:00:05.4]}
67. Bc3 {[%clk 0:00:06.6]} 67... Kf7 {[%clk 0:00:04.6]} 68. Bd2 {[%clk
0:00:07.5]} 68... Rg1+ {[%clk 0:00:03.9]} 69. Kb2 {[%clk 0:00:07.5]} 69... Rh1
{[%clk 0:00:04.8]} 70. Ra6 {[%clk 0:00:06.6]} 70... h5 {[%clk 0:00:04.9]} 71.
Bg5 {[%clk 0:00:05.9]} 71... h4 {[%clk 0:00:04.9]} 72. Kc3 {[%clk 0:00:06.4]}
72... h3 {[%clk 0:00:04.9]} 73. Rh6 {[%clk 0:00:07.1]} 73... Kg7 {[%clk
0:00:04.6]} 74. Rh4 {[%clk 0:00:06.2]} 74... Kg6 {[%clk 0:00:05]} 75. Bd2 {[%clk
0:00:06.7]} 75... Kf5 {[%clk 0:00:04.9]} 76. Rf4+ {[%clk 0:00:06.3]} 76... Ke5
{[%clk 0:00:05.2]} 77. Rh4 {[%clk 0:00:06.9]} 77... Bb1 {[%clk 0:00:05.4]} 78.
Be3 {[%clk 0:00:06.2]} 78... Kf5 {[%clk 0:00:05.2]} 79. Bd2 {[%clk 0:00:06.3]}
79... Ke6 {[%clk 0:00:04.5]} 80. Rh6+ {[%clk 0:00:06.2]} 80... Kf7 {[%clk
0:00:04.9]} 81. Rh4 {[%clk 0:00:07.1]} 81... Ke7 {[%clk 0:00:05.3]} 82. Rh7+
{[%clk 0:00:07.2]} 82... Kd6 {[%clk 0:00:05.5]} 83. Rh6+ {[%clk 0:00:08.1]}
83... Kd5 {[%clk 0:00:05.6]} 84. Rh4 {[%clk 0:00:09]} 84... Bc2 {[%clk
0:00:05.2]} 85. Rd4+ {[%clk 0:00:07.4]} 85... Kc5 {[%clk 0:00:05.3]} 86. Rc4+
{[%clk 0:00:07.6]} 86... Kd5 {[%clk 0:00:04.9]} 87. Rh4 {[%clk 0:00:08.5]} 87...
Rb1 {[%clk 0:00:04.6]} 88. Rh5+ {[%clk 0:00:07.2]} 88... Ke4 {[%clk 0:00:03.4]}
89. Rh4+ {[%clk 0:00:07.6]} 89... Kf3 {[%clk 0:00:03.3]} 90. Rxh3+ {[%clk
0:00:08]} 90... Kg2 {[%clk 0:00:03.6]} 91. Rh8 {[%clk 0:00:07.6]} 91... Rb3+
{[%clk 0:00:03.6]} 92. Kd4 {[%clk 0:00:08.1]} 92... Kf3 {[%clk 0:00:03.7]} 93.
Re8 {[%clk 0:00:08.2]} 93... Rb7 {[%clk 0:00:03.3]} 94. Kc3 {[%clk 0:00:08.1]}
94... Rc7+ {[%clk 0:00:03.5]} 95. Kb2 {[%clk 0:00:08.4]} 95... Kf2 {[%clk
0:00:03.2]} 96. Be3+ {[%clk 0:00:07]} 96... Kg2 {[%clk 0:00:03.3]} 97. Bd2
{[%clk 0:00:07.2]} 97... Ba4 {[%clk 0:00:03.5]} 98. Bc3 {[%clk 0:00:07.3]} 98...
Rb7+ {[%clk 0:00:02.7]} 99. Kc1 {[%clk 0:00:07.1]} 99... Kf3 {[%clk 0:00:02.8]}
100. Re5 {[%clk 0:00:06]} 100... Rh7 {[%clk 0:00:02.3]} 101. Kd2 {[%clk
0:00:05.9]} 101... Bc2 {[%clk 0:00:02.6]} 102. Re3+ {[%clk 0:00:05.9]} 102...
Kg4 {[%clk 0:00:03]} 103. Re1 {[%clk 0:00:05.1]} 103... Rh2+ {[%clk 0:00:02.9]}
104. Kc1 {[%clk 0:00:05.6]} 104... Bb3 {[%clk 0:00:03.1]} 105. Bd2 {[%clk
0:00:06.2]} 105... Rh5 {[%clk 0:00:03.4]} 106. Re4+ {[%clk 0:00:06.4]} 106...
Kf5 {[%clk 0:00:03]} 107. Rd4 {[%clk 0:00:06.2]} 107... Rh1+ {[%clk 0:00:03.1]}
108. Kb2 {[%clk 0:00:06.6]} 108... Bc2 {[%clk 0:00:04]} 109. Kc3 {[%clk
0:00:07.2]} 109... Rb1 {[%clk 0:00:03.8]} 110. Rf4+ {[%clk 0:00:07.2]} 110...
Ke5 {[%clk 0:00:04.2]} 111. Rb4 {[%clk 0:00:07.8]} 111... Ra1 {[%clk 0:00:04.2]}
112. Bf4+ {[%clk 0:00:07.6]} 112... Kd5 {[%clk 0:00:04.5]} 113. Bd2 {[%clk
0:00:08.1]} 113... Ra3+ {[%clk 0:00:04.3]} 114. Kb2 {[%clk 0:00:08.8]} 114...
Ra8 {[%clk 0:00:05.2]} 115. Kc3 {[%clk 0:00:09]} 115... Rc8+ {[%clk 0:00:05.3]}
116. Kb2 {[%clk 0:00:09.3]} 116... Bd1 {[%clk 0:00:06]} 117. Bc3 {[%clk
0:00:09.5]} 117... Be2 {[%clk 0:00:06.6]} 118. Rd4+ {[%clk 0:00:09.6]} 118...
Ke6 {[%clk 0:00:07.3]} 119. Re4+ {[%clk 0:00:09.9]} 119... Kf5 {[%clk
0:00:07.9]} 120. Re7 {[%clk 0:00:10.1]} 120... Kg4 {[%clk 0:00:07.5]} 121. Kc1
{[%clk 0:00:10.4]} 121... Rxc3+ {[%clk 0:00:07.3]} 122. Kd2 {[%clk 0:00:11.3]}
122... Rc2+ {[%clk 0:00:07.2]} 123. Ke1 {[%clk 0:00:11.1]} 123... Bf3 {[%clk
0:00:06.8]} 124. Rd7 {[%clk 0:00:11.1]} 124... Be4 {[%clk 0:00:06.9]} 125. Rd4
{[%clk 0:00:11]} 125... Kf3 {[%clk 0:00:07.1]} 126. Kd1 {[%clk 0:00:11.9]}
126... Ke3 {[%clk 0:00:07.1]} 127. Ra4 {[%clk 0:00:11.2]} 127... Rg2 {[%clk
0:00:07.3]} 0-1

[Event "Early-Titled-Tuesday-Blitz-February-20-2024"]
[Site "Chess.com"]
[Date "2024.02.20"]
[Round "9"]
[White "dropstoneDP"]
[Black "PedroGil25"]
[Result "1-0"]
[WhiteElo "3006"]
[BlackElo "2515"]
[TimeControl "180+1"]
[EndTime "9:42:12 PST"]
[Termination "dropstoneDP won by resignation"]

1. e4 {[%clk 0:02:54.6]} 1... c5 {[%clk 0:03:00]} 2. Nf3 {[%clk 0:02:54.9]} 2...
e6 {[%clk 0:03:00.1]} 3. d4 {[%clk 0:02:55.4]} 3... cxd4 {[%clk 0:03:01]} 4.
Nxd4 {[%clk 0:02:56.1]} 4... a6 {[%clk 0:03:01.7]} 5. Bd3 {[%clk 0:02:55.4]}
5... Bc5 {[%clk 0:03:01.9]} 6. Nb3 {[%clk 0:02:55.6]} 6... Be7 {[%clk
0:03:01.7]} 7. Qg4 {[%clk 0:02:55]} 7... g6 {[%clk 0:03:01.8]} 8. Qe2 {[%clk
0:02:54.6]} 8... d6 {[%clk 0:03:01.3]} 9. Nc3 {[%clk 0:02:55]} 9... Nd7 {[%clk
0:03:01.8]} 10. Bd2 {[%clk 0:02:55.2]} 10... Qc7 {[%clk 0:03:02.4]} 11. O-O-O
{[%clk 0:02:55.5]} 11... b6 {[%clk 0:03:02.8]} 12. h4 {[%clk 0:02:55]} 12... Bb7
{[%clk 0:03:03]} 13. h5 {[%clk 0:02:55.1]} 13... O-O-O {[%clk 0:02:59]} 14. hxg6
{[%clk 0:02:54.5]} 14... fxg6 {[%clk 0:02:59.9]} 15. Qg4 {[%clk 0:02:53.8]}
15... e5 {[%clk 0:02:53]} 16. Nd5 {[%clk 0:02:53.3]} 16... Bxd5 {[%clk
0:02:50.5]} 17. exd5 {[%clk 0:02:54.2]} 17... Kb7 {[%clk 0:02:49.3]} 18. Qa4
{[%clk 0:02:46.5]} 18... Ra8 {[%clk 0:02:44]} 19. Bxg6 {[%clk 0:02:37.1]} 19...
Ngf6 {[%clk 0:02:42.4]} 20. Bf5 {[%clk 0:02:36.9]} 20... b5 {[%clk 0:02:40.4]}
21. Na5+ {[%clk 0:02:36.4]} 21... Ka7 {[%clk 0:02:33.9]} 22. Be3+ {[%clk
0:02:30]} 22... Nc5 {[%clk 0:02:30.3]} 23. Qb4 {[%clk 0:02:25.6]} 23... Rac8
{[%clk 0:02:26.7]} 24. Nc6+ {[%clk 0:02:24]} 24... Kb7 {[%clk 0:02:26]} 25.
Bxc8+ {[%clk 0:02:24.1]} 1-0

[Event "Early-Titled-Tuesday-Blitz-February-20-2024"]
[Site "Chess.com"]
[Date "2024.02.20"]
[Round "9"]
[White "HeroWilczek"]
[Black "Ati1517"]
[Result "0-1"]
[WhiteElo "2452"]
[BlackElo "2257"]
[TimeControl "180+1"]
[EndTime "9:43:27 PST"]
[Termination "Ati1517 won by resignation"]

1. e4 {[%clk 0:03:00.9]} 1... c5 {[%clk 0:02:56.7]} 2. Nf3 {[%clk 0:03:00.7]}
2... d6 {[%clk 0:02:57.1]} 3. d4 {[%clk 0:03:01.1]} 3... cxd4 {[%clk 0:02:58]}
4. Nxd4 {[%clk 0:03:01.9]} 4... Nf6 {[%clk 0:02:58.3]} 5. Nc3 {[%clk 0:03:02.5]}
5... a6 {[%clk 0:02:58.7]} 6. Be2 {[%clk 0:03:03]} 6... e6 {[%clk 0:02:59.2]} 7.
O-O {[%clk 0:03:02.8]} 7... Be7 {[%clk 0:02:59.5]} 8. Be3 {[%clk 0:03:03.4]}
8... O-O {[%clk 0:03:00.1]} 9. f4 {[%clk 0:03:04]} 9... Nc6 {[%clk 0:02:59.3]}
10. Kh1 {[%clk 0:03:04.1]} 10... e5 {[%clk 0:02:59.3]} 11. Nxc6 {[%clk
0:02:57.4]} 11... bxc6 {[%clk 0:02:58.9]} 12. fxe5 {[%clk 0:02:57.6]} 12... dxe5
{[%clk 0:02:59.6]} 13. Qe1 {[%clk 0:02:54.7]} 13... Be6 {[%clk 0:02:58.2]} 14.
Qg3 {[%clk 0:02:52.9]} 14... Qc7 {[%clk 0:02:54]} 15. Rad1 {[%clk 0:02:33.5]}
15... Rad8 {[%clk 0:02:51.8]} 16. b3 {[%clk 0:02:33.3]} 16... Rxd1 {[%clk
0:02:51.4]} 17. Rxd1 {[%clk 0:02:32.8]} 17... Kh8 {[%clk 0:02:45]} 18. Bxa6
{[%clk 0:02:12]} 18... Qa5 {[%clk 0:02:41.4]} 19. Bh6 {[%clk 0:01:20.7]} 19...
gxh6 {[%clk 0:02:35.6]} 20. Be2 {[%clk 0:01:21.3]} 20... Rg8 {[%clk 0:02:33.3]}
21. Qe3 {[%clk 0:01:16.4]} 21... Qc5 {[%clk 0:02:29.3]} 22. Qxc5 {[%clk
0:01:11.4]} 22... Bxc5 {[%clk 0:02:30.2]} 23. a4 {[%clk 0:01:11.4]} 23... Bd4
{[%clk 0:02:28.6]} 24. Na2 {[%clk 0:01:09.3]} 24... Nxe4 {[%clk 0:02:28.6]} 0-1

[Event "Early-Titled-Tuesday-Blitz-February-20-2024"]
[Site "Chess.com"]
[Date "2024.02.20"]
[Round "9"]
[White "N_Mullodzhanov"]
[Black "Mikhail_Golubev"]
[Result "1-0"]
[WhiteElo "2489"]
[BlackElo "2627"]
[TimeControl "180+1"]
[EndTime "9:43:46 PST"]
[Termination "N_Mullodzhanov won by resignation"]

1. e4 {[%clk 0:03:00.9]} 1... c5 {[%clk 0:02:59.3]} 2. c3 {[%clk 0:02:58.1]}
2... d5 {[%clk 0:02:55.4]} 3. exd5 {[%clk 0:02:58.3]} 3... Nf6 {[%clk 0:02:56]}
4. Qa4+ {[%clk 0:02:57.9]} 4... Nbd7 {[%clk 0:02:50.5]} 5. Qb3 {[%clk
0:02:57.9]} 5... a6 {[%clk 0:02:43.5]} 6. Nf3 {[%clk 0:02:56]} 6... b5 {[%clk
0:02:39.9]} 7. c4 {[%clk 0:02:55.8]} 7... Rb8 {[%clk 0:02:05.7]} 8. cxb5 {[%clk
0:02:33.5]} 8... Bb7 {[%clk 0:02:04.7]} 9. Nc3 {[%clk 0:02:27.2]} 9... axb5
{[%clk 0:01:26.4]} 10. Bxb5 {[%clk 0:02:26.1]} 10... Nxd5 {[%clk 0:01:24]} 11.
Nxd5 {[%clk 0:02:20]} 11... e6 {[%clk 0:01:16.2]} 12. Nb6 {[%clk 0:02:00.4]}
12... Bxf3 {[%clk 0:01:08.9]} 13. Nxd7 {[%clk 0:01:43.7]} 1-0

[Event "Early-Titled-Tuesday-Blitz-February-20-2024"]
[Site "Chess.com"]
[Date "2024.02.20"]
[Round "9"]
[White "only_strong_moves"]
[Black "InitiatingASC"]
[Result "1-0"]
[WhiteElo "2632"]
[BlackElo "2399"]
[TimeControl "180+1"]
[EndTime "9:44:04 PST"]
[Termination "only_strong_moves won by resignation"]

1. e4 {[%clk 0:02:54.6]} 1... c5 {[%clk 0:02:59.4]} 2. Nf3 {[%clk 0:02:54.5]}
2... Nc6 {[%clk 0:03:00.1]} 3. d4 {[%clk 0:02:54.2]} 3... cxd4 {[%clk 0:03:01]}
4. Nxd4 {[%clk 0:02:54.7]} 4... Nf6 {[%clk 0:03:01.5]} 5. Nc3 {[%clk 0:02:53.2]}
5... e5 {[%clk 0:03:02.1]} 6. Ndb5 {[%clk 0:02:52.3]} 6... h6 {[%clk 0:03:02.4]}
7. Nd6+ {[%clk 0:02:49.6]} 7... Bxd6 {[%clk 0:03:02.6]} 8. Qxd6 {[%clk
0:02:50.5]} 8... Qe7 {[%clk 0:03:03.3]} 9. Qd1 {[%clk 0:02:48.9]} 9... O-O
{[%clk 0:03:02.6]} 10. Be2 {[%clk 0:02:44.8]} 10... Rd8 {[%clk 0:03:01.9]} 11.
O-O {[%clk 0:02:37.4]} 11... d6 {[%clk 0:02:38.5]} 12. f4 {[%clk 0:02:29.2]}
12... exf4 {[%clk 0:02:26.6]} 13. Rxf4 {[%clk 0:02:21.8]} 13... Ne5 {[%clk
0:02:19.8]} 14. Be3 {[%clk 0:02:18]} 14... Ng6 {[%clk 0:02:17.3]} 15. Rf3 {[%clk
0:02:12.8]} 15... Nxe4 {[%clk 0:02:10.7]} 16. Nxe4 {[%clk 0:02:13.7]} 16... Qxe4
{[%clk 0:02:10.4]} 17. Bd3 {[%clk 0:02:13.4]} 17... Qg4 {[%clk 0:01:49.4]} 18.
Qd2 {[%clk 0:02:03.6]} 18... Ne5 {[%clk 0:01:31.8]} 19. Rg3 {[%clk 0:02:03]}
19... Qh5 {[%clk 0:01:32.1]} 20. Be2 {[%clk 0:01:56.6]} 20... Qh4 {[%clk
0:01:25.8]} 21. Bxh6 {[%clk 0:01:51.5]} 21... g6 {[%clk 0:01:19.6]} 22. Bg5
{[%clk 0:01:50]} 1-0

[Event "Early-Titled-Tuesday-Blitz-February-20-2024"]
[Site "Chess.com"]
[Date "2024.02.20"]
[Round "9"]
[White "NovozhilovSemen"]
[Black "Rozhkov_V"]
[Result "0-1"]
[WhiteElo "2631"]
[BlackElo "2438"]
[TimeControl "180+1"]
[EndTime "9:44:07 PST"]
[Termination "Rozhkov_V won by checkmate"]

1. d4 {[%clk 0:03:00.9]} 1... d5 {[%clk 0:02:55.2]} 2. c4 {[%clk 0:03:00.6]}
2... dxc4 {[%clk 0:02:56.1]} 3. e3 {[%clk 0:03:00.8]} 3... e5 {[%clk 0:02:56.5]}
4. Bxc4 {[%clk 0:03:00.7]} 4... Nc6 {[%clk 0:02:57]} 5. Nf3 {[%clk 0:03:00.9]}
5... e4 {[%clk 0:02:57]} 6. Nfd2 {[%clk 0:03:01.4]} 6... Qg5 {[%clk 0:02:57.3]}
7. Nxe4 {[%clk 0:03:01.8]} 7... Qxg2 {[%clk 0:02:57.7]} 8. Ng3 {[%clk
0:03:02.2]} 8... Qh3 {[%clk 0:02:58.3]} 9. Nc3 {[%clk 0:03:01.6]} 9... Nf6
{[%clk 0:02:58.5]} 10. Qb3 {[%clk 0:03:00]} 10... Bd6 {[%clk 0:02:58.7]} 11.
Bxf7+ {[%clk 0:02:58.4]} 11... Kd8 {[%clk 0:02:59.2]} 12. Bd2 {[%clk 0:02:56.5]}
12... Bg4 {[%clk 0:02:47.1]} 13. Qxb7 {[%clk 0:02:40.3]} 13... Qg2 {[%clk
0:02:33.6]} 14. Qxa8+ {[%clk 0:02:34.4]} 14... Ke7 {[%clk 0:02:33.1]} 15. Bd5
{[%clk 0:02:03.6]} 15... Nxd5 {[%clk 0:01:28.1]} 16. Qxc6 {[%clk 0:02:01.9]}
16... Bxg3 {[%clk 0:01:11.7]} 17. Qxd5 {[%clk 0:01:37.7]} 17... Qxf2# {[%clk
0:01:02.3]} 0-1

[Event "Early-Titled-Tuesday-Blitz-February-20-2024"]
[Site "Chess.com"]
[Date "2024.02.20"]
[Round "9"]
[White "ClaudiaSof"]
[Black "Actuary44"]
[Result "0-1"]
[WhiteElo "2335"]
[BlackElo "2511"]
[TimeControl "180+1"]
[EndTime "9:44:12 PST"]
[Termination "Actuary44 won by checkmate"]

1. d4 {[%clk 0:03:00.9]} 1... Nf6 {[%clk 0:02:59]} 2. Bf4 {[%clk 0:03:01.1]}
2... d6 {[%clk 0:02:58.8]} 3. Nc3 {[%clk 0:03:00.2]} 3... g6 {[%clk 0:02:59.3]}
4. e4 {[%clk 0:03:00.3]} 4... Bg7 {[%clk 0:02:59.8]} 5. Qd2 {[%clk 0:03:00.3]}
5... O-O {[%clk 0:03:00.3]} 6. O-O-O {[%clk 0:02:58.7]} 6... Nbd7 {[%clk
0:02:57.2]} 7. Bh6 {[%clk 0:02:58.4]} 7... c5 {[%clk 0:02:56.4]} 8. d5 {[%clk
0:02:57.5]} 8... a6 {[%clk 0:02:55.3]} 9. f3 {[%clk 0:02:56.1]} 9... b5 {[%clk
0:02:54.9]} 10. h4 {[%clk 0:02:55.7]} 10... b4 {[%clk 0:02:53.8]} 11. Nce2
{[%clk 0:02:54.6]} 11... Qa5 {[%clk 0:02:49.8]} 12. Kb1 {[%clk 0:02:53.8]} 12...
c4 {[%clk 0:02:50.1]} 13. Bxg7 {[%clk 0:02:50]} 13... Kxg7 {[%clk 0:02:49.7]}
14. h5 {[%clk 0:02:45.1]} 14... c3 {[%clk 0:02:49.1]} 15. Qe3 {[%clk 0:02:41]}
15... cxb2 {[%clk 0:02:36.6]} 16. hxg6 {[%clk 0:02:39.6]} 16... fxg6 {[%clk
0:02:37.5]} 17. Qh6+ {[%clk 0:02:37.4]} 17... Kg8 {[%clk 0:02:37.7]} 18. Nh3
{[%clk 0:02:25]} 18... Ne5 {[%clk 0:02:16.8]} 19. Nef4 {[%clk 0:02:06]} 19...
Nf7 {[%clk 0:02:07.9]} 20. Qh4 {[%clk 0:01:57.4]} 20... Bxh3 {[%clk 0:01:31.5]}
21. Qxh3 {[%clk 0:01:48.3]} 21... Rfc8 {[%clk 0:01:30.6]} 22. Bd3 {[%clk
0:01:45.8]} 22... b3 {[%clk 0:01:09.3]} 23. axb3 {[%clk 0:01:37.7]} 23... Qa1#
{[%clk 0:01:07.9]} 0-1

[Event "Early-Titled-Tuesday-Blitz-February-20-2024"]
[Site "Chess.com"]
[Date "2024.02.20"]
[Round "9"]
[White "masnyszachistaaa"]
[Black "ploxoi"]
[Result "1-0"]
[WhiteElo "2573"]
[BlackElo "2450"]
[TimeControl "180+1"]
[EndTime "9:44:22 PST"]
[Termination "masnyszachistaaa won by resignation"]

1. Nf3 {[%clk 0:03:00.9]} 1... d5 {[%clk 0:02:59.9]} 2. c4 {[%clk 0:02:58.2]}
2... c6 {[%clk 0:03:00.3]} 3. d4 {[%clk 0:02:56.2]} 3... e6 {[%clk 0:03:00.1]}
4. g3 {[%clk 0:02:50]} 4... Nf6 {[%clk 0:02:58.8]} 5. Bg2 {[%clk 0:02:49.1]}
5... Nbd7 {[%clk 0:02:59.2]} 6. O-O {[%clk 0:02:48.3]} 6... Be7 {[%clk
0:02:59.7]} 7. Nbd2 {[%clk 0:02:44.2]} 7... O-O {[%clk 0:02:59.8]} 8. Qc2 {[%clk
0:02:42.3]} 8... b6 {[%clk 0:03:00.1]} 9. e4 {[%clk 0:02:41.2]} 9... Bb7 {[%clk
0:03:00.7]} 10. Rd1 {[%clk 0:02:34.8]} 10... Rc8 {[%clk 0:02:49.8]} 11. b3
{[%clk 0:02:28]} 11... Qc7 {[%clk 0:02:48.1]} 12. Bb2 {[%clk 0:02:26.9]} 12...
Rfd8 {[%clk 0:02:45.7]} 13. Rac1 {[%clk 0:02:25.4]} 13... Qb8 {[%clk 0:02:45.4]}
14. Qb1 {[%clk 0:02:19.8]} 14... dxe4 {[%clk 0:02:45]} 15. Nxe4 {[%clk
0:02:20.7]} 15... c5 {[%clk 0:02:45.3]} 16. Nxf6+ {[%clk 0:02:18.2]} 16... Nxf6
{[%clk 0:02:44]} 17. dxc5 {[%clk 0:02:09.4]} 17... Bxc5 {[%clk 0:02:43.9]} 18.
Bxf6 {[%clk 0:02:04.7]} 18... gxf6 {[%clk 0:02:43.3]} 19. Qb2 {[%clk 0:02:00.2]}
19... Kg7 {[%clk 0:02:38.2]} 20. Qc3 {[%clk 0:01:54.8]} 20... a5 {[%clk
0:02:32.8]} 21. Nh4 {[%clk 0:01:45]} 21... Bxg2 {[%clk 0:02:28.9]} 22. Nxg2
{[%clk 0:01:45.9]} 22... Qe5 {[%clk 0:02:27.2]} 23. Qf3 {[%clk 0:01:39.9]} 23...
Qb2 {[%clk 0:02:10.5]} 24. Nf4 {[%clk 0:01:36]} 24... f5 {[%clk 0:02:07.9]} 25.
Nh5+ {[%clk 0:01:08.8]} 25... Kh8 {[%clk 0:02:07.7]} 26. Qf4 {[%clk 0:01:03.3]}
26... Rd4 {[%clk 0:01:49.4]} 27. Qe5+ {[%clk 0:01:01.4]} 1-0

[Event "Early-Titled-Tuesday-Blitz-February-20-2024"]
[Site "Chess.com"]
[Date "2024.02.20"]
[Round "9"]
[White "dianamirza"]
[Black "AnaKuchava"]
[Result "0-1"]
[WhiteElo "1990"]
[BlackElo "2214"]
[TimeControl "180+1"]
[EndTime "9:44:26 PST"]
[Termination "AnaKuchava won by resignation"]

1. d4 {[%clk 0:02:56.9]} 1... d5 {[%clk 0:02:20.6]} 2. Nf3 {[%clk 0:02:50.7]}
2... Nf6 {[%clk 0:02:17.5]} 3. e3 {[%clk 0:02:51]} 3... Bf5 {[%clk 0:02:13]} 4.
Bd3 {[%clk 0:02:50.4]} 4... Bxd3 {[%clk 0:02:12.5]} 5. Qxd3 {[%clk 0:02:51.3]}
5... c6 {[%clk 0:02:09]} 6. O-O {[%clk 0:02:50.6]} 6... e6 {[%clk 0:02:08.4]} 7.
c4 {[%clk 0:02:49.6]} 7... Be7 {[%clk 0:02:06.2]} 8. Nc3 {[%clk 0:02:49.7]} 8...
O-O {[%clk 0:02:01.1]} 9. Ne5 {[%clk 0:02:49.9]} 9... Nbd7 {[%clk 0:02:00.7]}
10. f4 {[%clk 0:02:50]} 10... dxc4 {[%clk 0:01:55]} 11. Nxc4 {[%clk 0:02:48.8]}
11... c5 {[%clk 0:01:53.3]} 12. dxc5 {[%clk 0:02:25.6]} 12... Nxc5 {[%clk
0:01:54.2]} 13. Qxd8 {[%clk 0:02:25.6]} 13... Rfxd8 {[%clk 0:01:52.8]} 14. b4
{[%clk 0:02:24.6]} 14... Nd3 {[%clk 0:01:47.6]} 15. a3 {[%clk 0:02:22.1]} 15...
Rac8 {[%clk 0:01:44.2]} 16. Nb5 {[%clk 0:02:09.4]} 16... Rxc4 {[%clk 0:01:42.6]}
17. Nxa7 {[%clk 0:02:09.8]} 17... Ne4 {[%clk 0:01:28]} 18. Nb5 {[%clk
0:02:01.4]} 18... Bf6 {[%clk 0:01:21.7]} 19. Rb1 {[%clk 0:01:57.8]} 19... Rdc8
{[%clk 0:01:16.8]} 20. Bd2 {[%clk 0:01:33.5]} 20... Nxd2 {[%clk 0:01:14.6]} 21.
Nd6 {[%clk 0:01:33.8]} 21... Nxb1 {[%clk 0:01:11.5]} 22. Nxc8 {[%clk 0:01:34.2]}
22... Rxc8 {[%clk 0:01:10.2]} 23. Rxb1 {[%clk 0:01:34.9]} 23... Rc1+ {[%clk
0:01:10.4]} 24. Rxc1 {[%clk 0:01:35.6]} 24... Nxc1 {[%clk 0:01:11.3]} 25. Kf2
{[%clk 0:01:35.2]} 25... Bb2 {[%clk 0:01:05.7]} 0-1